fUSD/lending_fUSD_20260608
["ID","MTS","AMOUNT","RATE_DAILY","PERIOD"]
[424440460,1780895445000,-180.64640486,0.00027397,7]
[424440466,1780895445000,-189.26244261,0.00027397,7]
[424440459,1780895445000,-216.2156328,0.00027397,7]
[424440461,1780895445000,-172.45384549,0.00027397,7]
[424440464,1780895445000,-215.9769167,0.00027397,7]
[424440420,1780895445000,-208.0,0.00026617,2]
[424440462,1780895445000,-247.4791875,0.00027397,7]
[424440470,1780895445000,-150.0,0.00027397,2]
[424440473,1780895445000,-150.0,0.00027397,2]
[424440471,1780895445000,-150.0,0.00027397,2]
[424440474,1780895445000,-150.0,0.00027397,2]
[424440449,1780895445000,-152.0,0.00027257,39]
[424440465,1780895445000,-218.68965088,0.00027397,7]
[424440446,1780895445000,-160.0,0.00027172,3]
[424440434,1780895445000,-160.0,0.00026983,3]
[424440445,1780895445000,-152.0,0.00027145,27]
[424440421,1780895445000,-350.0,0.00026634,5]
[424440419,1780895445000,-783.0,0.00026617,2]
[424440418,1780895445000,-275.0,0.00026546,2]
[424440424,1780895445000,-4364.41,0.00026707,7]
[424440428,1780895445000,-2000.0,0.00026834,2]
[424440422,1780895445000,-900.0,0.00026644,7]
[424440423,1780895445000,-160.0,0.00026668,3]
[424440426,1780895445000,-152.0,0.00026771,37]
[424440427,1780895445000,-152.0,0.00026791,26]
[424440425,1780895445000,-350.0,0.00026756,4]
[424440429,1780895445000,-400.0,0.0002687,2]
[424440430,1780895445000,-300.0,0.000269,28]
[424440447,1780895445000,-350.0,0.00027217,9]
[424440440,1780895445000,-297.0,0.00027028,2]
[424440432,1780895445000,-298.5,0.00026948,2]
[424440433,1780895445000,-350.0,0.00026972,8]
[424440431,1780895445000,-575.32,0.00026926,2]
[424440436,1780895445000,-530.0,0.00027,2]
[424440438,1780895445000,-152.0,0.00027014,38]
[424440435,1780895445000,-250.0,0.00027,2]
[424440437,1780895445000,-151.0,0.00027007,60]
[424440439,1780895445000,-208.0,0.00027028,2]
[424440442,1780895445000,-275.0,0.00027094,2]
[424440443,1780895445000,-928.38,0.000271,14]
[424440453,1780895445000,-604.42603633,0.000273,30]
[424440444,1780895445000,-697.0,0.00027137,2]
[424440441,1780895445000,-394.0,0.00027091,7]
[424440481,1780895445000,-150.0,0.00027397,2]
[424440483,1780895445000,-150.0,0.00027397,2]
[424440477,1780895445000,-150.0,0.00027397,2]
[424440522,1780895445000,-150.0,0.00027397,2]
[424440523,1780895445000,-150.0,0.00027397,2]
[424440511,1780895445000,-150.0,0.00027397,2]
[424440514,1780895445000,-150.0,0.00027397,2]
[424440513,1780895445000,-150.0,0.00027397,2]
[424440517,1780895445000,-150.0,0.00027397,2]
[424440515,1780895445000,-150.0,0.00027397,2]
[424440521,1780895445000,-150.0,0.00027397,2]
[424440516,1780895445000,-150.0,0.00027397,2]
[424440520,1780895445000,-150.0,0.00027397,2]
[424440519,1780895445000,-150.0,0.00027397,2]
[424440518,1780895445000,-150.0,0.00027397,2]
[424440512,1780895445000,-150.0,0.00027397,2]
[424440524,1780895445000,-150.0,0.00027397,2]
[424440527,1780895445000,-150.0,0.00027397,2]
[424440530,1780895445000,-150.0,0.00027397,2]
[424440532,1780895445000,-500.0,0.00027397,2]
[424440528,1780895445000,-150.0,0.00027397,2]
[424440529,1780895445000,-150.0,0.00027397,2]
[424440525,1780895445000,-150.0,0.00027397,2]
[424440535,1780895445000,-500.0,0.00027397,2]
[424440531,1780895445000,-150.0,0.00027397,2]
[424440533,1780895445000,-500.0,0.00027397,2]
[424440534,1780895445000,-500.0,0.00027397,2]
[424440536,1780895445000,-150.0,0.00027397,2]
[424440482,1780895445000,-150.0,0.00027397,2]
[424440526,1780895445000,-150.0,0.00027397,2]
[424440507,1780895445000,-150.0,0.00027397,2]
[424440504,1780895445000,-150.0,0.00027397,2]
[424440509,1780895445000,-150.0,0.00027397,2]
[424440503,1780895445000,-150.0,0.00027397,2]
[424440475,1780895445000,-150.0,0.00027397,2]
[424440478,1780895445000,-150.0,0.00027397,2]
[424440476,1780895445000,-150.0,0.00027397,2]
[424440479,1780895445000,-150.0,0.00027397,2]
[424440480,1780895445000,-150.0,0.00027397,2]
[424440486,1780895445000,-150.0,0.00027397,2]
[424440491,1780895445000,-150.0,0.00027397,2]
[424440495,1780895445000,-150.0,0.00027397,2]
[424440493,1780895445000,-150.0,0.00027397,2]
[424440484,1780895445000,-150.0,0.00027397,2]
[424440494,1780895445000,-150.0,0.00027397,2]
[424440488,1780895445000,-150.0,0.00027397,2]
[424440487,1780895445000,-150.0,0.00027397,2]
[424440489,1780895445000,-150.0,0.00027397,2]
[424440485,1780895445000,-150.0,0.00027397,2]
[424440505,1780895445000,-150.0,0.00027397,2]
[424440510,1780895445000,-150.0,0.00027397,2]
[424440502,1780895445000,-150.0,0.00027397,2]
[424440500,1780895445000,-150.0,0.00027397,2]
[424440508,1780895445000,-150.0,0.00027397,2]
[424440506,1780895445000,-150.0,0.00027397,2]
[424440499,1780895445000,-150.0,0.00027397,2]
[424440497,1780895445000,-150.0,0.00027397,2]
[424440490,1780895445000,-150.0,0.00027397,2]
[424440492,1780895445000,-150.0,0.00027397,2]
[424440501,1780895445000,-150.0,0.00027397,2]
[424440581,1780895446000,-44589.02,0.00027397,10]
[424440578,1780895446000,-1000.0,0.00027397,20]
[424440582,1780895446000,-37157.51,0.00027397,10]
[424440580,1780895446000,-28558.29,0.00027397,10]
[424440579,1780895446000,-300.0,0.00027397,2]
[424440576,1780895446000,-228.89,0.00027397,7]
[424440569,1780895446000,-150.0,0.00027397,2]
[424440571,1780895446000,-2520.55347352,0.00027397,2]
[424440566,1780895446000,-150.0,0.00027397,2]
[424440570,1780895446000,-275.64436299,0.00027397,2]
[424440572,1780895446000,-1500.0,0.00027397,2]
[424440583,1780895446000,-30964.59,0.00027397,10]
[424440568,1780895446000,-150.0,0.00027397,2]
[424440577,1780895446000,-528.84,0.00027397,2]
[424440615,1780895446000,-500.0,0.000274,2]
[424440585,1780895446000,-291.78660342,0.00027397,7]
[424440591,1780895446000,-286.92,0.000274,7]
[424440589,1780895446000,-300.0,0.00027398,2]
[424440593,1780895446000,-456.17,0.000274,7]
[424440601,1780895446000,-500.0,0.000274,2]
[424440603,1780895446000,-500.0,0.000274,2]
[424440605,1780895446000,-500.0,0.000274,2]
[424440607,1780895446000,-500.0,0.000274,2]
[424440609,1780895446000,-500.0,0.000274,2]
[424440597,1780895446000,-500.0,0.000274,2]
[424440599,1780895446000,-500.0,0.000274,2]
[424440595,1780895446000,-999.39407274,0.000274,7]
[424440567,1780895446000,-150.0,0.00027397,2]
[424440584,1780895446000,-189.26244261,0.00027397,7]
[424440565,1780895446000,-150.0,0.00027397,2]
[424440561,1780895446000,-150.0,0.00027397,2]
[424440575,1780895446000,-165.49454062,0.00027397,2]
[424440539,1780895446000,-500.0,0.00027397,2]
[424440537,1780895446000,-500.0,0.00027397,2]
[424440538,1780895446000,-500.0,0.00027397,2]
[424440541,1780895446000,-500.0,0.00027397,2]
[424440540,1780895446000,-150.0,0.00027397,2]
[424440543,1780895446000,-500.0,0.00027397,2]
[424440547,1780895446000,-500.0,0.00027397,2]
[424440546,1780895446000,-500.0,0.00027397,2]
[424440544,1780895446000,-500.0,0.00027397,2]
[424440542,1780895446000,-500.0,0.00027397,2]
[424440548,1780895446000,-500.0,0.00027397,2]
[424440545,1780895446000,-500.0,0.00027397,2]
[424440551,1780895446000,-500.0,0.00027397,2]
[424440549,1780895446000,-500.0,0.00027397,2]
[424440553,1780895446000,-500.0,0.00027397,2]
[424440552,1780895446000,-150.0,0.00027397,2]
[424440560,1780895446000,-150.0,0.00027397,2]
[424440613,1780895446000,-800.0,0.000274,2]
[424440557,1780895446000,-150.0,0.00027397,2]
[424440555,1780895446000,-150.0,0.00027397,2]
[424440554,1780895446000,-317.63743829,0.00027397,2]
[424440556,1780895446000,-150.0,0.00027397,2]
[424440550,1780895446000,-500.0,0.00027397,2]
[424440558,1780895446000,-150.0,0.00027397,2]
[424440559,1780895446000,-150.0,0.00027397,2]
[424440574,1780895446000,-429.3917844,0.00027397,2]
[424440573,1780895446000,-515.15,0.00027397,2]
[424440562,1780895446000,-150.0,0.00027397,2]
[424440563,1780895446000,-150.0,0.00027397,2]
[424440564,1780895446000,-150.0,0.00027397,2]
[424440611,1780895446000,-696.61,0.000274,2]
[424440587,1780895446000,-273.5623813,0.00027397,7]
[424440619,1780895446000,-500.0,0.000274,2]
[424440690,1780895446000,-1000.0,0.000275,2]
[424440694,1780895446000,-152.0,0.000275,28]
[424440692,1780895446000,-500.0,0.000275,7]
[424440696,1780895446000,-152.0,0.000275,5]
[424440697,1780895446000,-177.50410516,0.00027536,2]
[424440699,1780895446000,-164.72,0.0002756,9]
[424440702,1780895446000,-250.0,0.00027575,9]
[424440704,1780895446000,-250.0,0.00027575,9]
[424440717,1780895446000,-530.2,0.00027626,2]
[424440711,1780895446000,-250.0,0.00027591,9]
[424440715,1780895446000,-4291.93,0.000276,14]
[424440706,1780895446000,-250.0,0.00027575,9]
[424440709,1780895446000,-250.0,0.00027576,9]
[424440707,1780895446000,-250.0,0.00027575,9]
[424440688,1780895446000,-204.78494136,0.000275,2]
[424440713,1780895446000,-737.6,0.000276,7]
[424440723,1780895446000,-247.3675,0.00027671,14]
[424440722,1780895446000,-180.48,0.00027671,14]
[424440721,1780895446000,-697.0,0.00027671,2]
[424440725,1780895446000,-198.46,0.00027671,13]
[424440724,1780895446000,-198.47,0.00027671,13]
[424440733,1780895446000,-530.2,0.00027854,2]
[424440726,1780895446000,-3785.0,0.0002768,10]
[424440730,1780895446000,-4291.93,0.000278,14]
[424440732,1780895446000,-297.0,0.0002785,10]
[424440734,1780895446000,-255.9,0.00027857,2]
[424440728,1780895446000,-500.0,0.0002774,60]
[424440617,1780895446000,-500.0,0.000274,2]
[424440729,1780895446000,-900.0,0.0002774,60]
[424440731,1780895446000,-208.0,0.0002785,10]
[424440719,1780895446000,-275.0,0.00027642,2]
[424440686,1780895446000,-237.00310702,0.00027499,5]
[424440727,1780895446000,-456.17,0.000277,7]
[424440682,1780895446000,-167.59793313,0.00027485,2]
[424440684,1780895446000,-152.0,0.00027499,40]
[424440621,1780895446000,-500.0,0.000274,2]
[424440631,1780895446000,-500.0,0.000274,2]
[424440627,1780895446000,-500.0,0.000274,2]
[424440637,1780895446000,-4291.93,0.000274,14]
[424440623,1780895446000,-500.0,0.000274,2]
[424440635,1780895446000,-200.0,0.000274,2]
[424440625,1780895446000,-500.0,0.000274,2]
[424440633,1780895446000,-500.0,0.000274,2]
[424440639,1780895446000,-296.0,0.000274,30]
[424440645,1780895446000,-783.0,0.00027439,15]
[424440641,1780895446000,-296.0,0.000274,30]
[424440643,1780895446000,-394.67,0.000274,30]
[424440647,1780895446000,-208.0,0.00027439,10]
[424440658,1780895446000,-185.23703647,0.00027475,2]
[424440629,1780895446000,-631.08,0.000274,2]
[424440660,1780895446000,-154.95642918,0.00027475,2]
[424440679,1780895446000,-190.31328712,0.00027485,2]
[424440677,1780895446000,-182.96447965,0.00027481,2]
[424440672,1780895446000,-180.30107558,0.00027475,2]
[424440668,1780895446000,-172.03948657,0.00027475,2]
[424440666,1780895446000,-199.54005421,0.00027475,2]
[424440670,1780895446000,-179.36641743,0.00027475,2]
[424440656,1780895446000,-159.62891511,0.00027475,2]
[424440664,1780895446000,-168.53276094,0.00027475,2]
[424440654,1780895446000,-186.5702685,0.00027475,2]
[424440651,1780895446000,-187.54065911,0.00027467,2]
[424440662,1780895446000,-159.59910865,0.00027475,2]
[424440649,1780895446000,-15525.0,0.00027463,7]
[424440675,1780895446000,-1864.51,0.00027481,7]
[424440774,1780895447000,-530.2,0.00028539,2]
[424440782,1780895447000,-1657.05,0.0002863,30]
[424440776,1780895447000,-900.0,0.00028562,60]
[424440785,1780895447000,-1576.88,0.0002863,7]
[424440784,1780895447000,-2709.73,0.0002863,30]
[424440768,1780895447000,-3643.0,0.00028467,2]
[424440775,1780895447000,-546.22774388,0.0002856,7]
[424440773,1780895447000,-1571.88,0.000285,7]
[424440766,1780895447000,-4364.41,0.00028384,7]
[424440762,1780895447000,-174.71,0.0002831,2]
[424440767,1780895447000,-1227.0,0.00028467,2]
[424440777,1780895447000,-160.0,0.00028594,3]
[424440780,1780895447000,-1657.05,0.0002863,7]
[424440786,1780895447000,-1576.88,0.0002863,2]
[424440779,1780895447000,-1571.88,0.000286,7]
[424440781,1780895447000,-1657.05,0.0002863,2]
[424440783,1780895447000,-940.89,0.0002863,2]
[424440787,1780895447000,-1576.88,0.0002863,30]
[424440792,1780895447000,-1657.05,0.00028695,7]
[424440798,1780895447000,-697.0,0.00028739,3]
[424440797,1780895447000,-275.0,0.00028738,2]
[424440788,1780895447000,-156.4504249,0.00028634,2]
[424440791,1780895447000,-940.89,0.00028693,30]
[424440790,1780895447000,-160.0,0.00028671,3]
[424440789,1780895447000,-940.89,0.00028661,7]
[424440793,1780895447000,-1576.88,0.00028695,7]
[424440770,1780895447000,-168.37,0.00028493,2]
[424440778,1780895447000,-456.17,0.000286,7]
[424440765,1780895447000,-350.0,0.00028345,11]
[424440752,1780895447000,-3798.49,0.00028218,2]
[424440763,1780895447000,-530.2,0.00028311,2]
[424440795,1780895447000,-2323.0,0.00028711,3]
[424440736,1780895447000,-1571.88,0.000279,7]
[424440737,1780895447000,-168.56879304,0.000279,2]
[424440740,1780895447000,-544.32811394,0.00028,2]
[424440739,1780895447000,-456.17,0.00028,7]
[424440741,1780895447000,-351.7438885,0.00028,30]
[424440746,1780895447000,-151.0,0.00028007,60]
[424440742,1780895447000,-160.0,0.00028,2]
[424440744,1780895447000,-4291.93,0.00028,14]
[424440748,1780895447000,-530.2,0.00028082,2]
[424440749,1780895447000,-209.1,0.00028137,2]
[424440745,1780895447000,-600.0,0.00028,2]
[424440747,1780895447000,-500.0,0.00028039,14]
[424440772,1780895447000,-4291.93,0.000285,14]
[424440743,1780895447000,-325.0,0.00028,2]
[424440750,1780895447000,-275.0,0.0002819,2]
[424440753,1780895447000,-247.3675,0.00028219,14]
[424440754,1780895447000,-198.47,0.00028219,13]
[424440756,1780895447000,-305.19,0.00028227,7]
[424440758,1780895447000,-866.3,0.00028267,2]
[424440735,1780895447000,-150.0,0.00027859,7]
[424440757,1780895447000,-160.0,0.00028263,3]
[424440755,1780895447000,-198.46,0.00028219,13]
[424440761,1780895447000,-544.0,0.00028306,7]
[424440769,1780895447000,-419.0,0.00028467,2]
[424440760,1780895447000,-4291.93,0.000283,14]
[424440764,1780895447000,-160.0,0.00028316,3]
[424440771,1780895447000,-286.92,0.000285,7]
[424440751,1780895447000,-697.0,0.00028205,3]
[424440794,1780895447000,-1861.32289542,0.000287,2]
[424440738,1780895447000,-151.0,0.00027962,4]
[424440799,1780895447000,-940.89,0.00028756,7]
[424440835,1780895447000,-181.05430945,0.00028829,2]
[424440833,1780895447000,-940.89,0.0002882,2]
[424440831,1780895447000,-209.0,0.0002882,30]
[424440837,1780895447000,-180.89582192,0.00028829,2]
[424440829,1780895447000,-2709.73,0.00028797,7]
[424440839,1780895447000,-186.23628948,0.00028829,2]
[424440850,1780895447000,-1576.88,0.00028859,2]
[424440849,1780895447000,-1657.05,0.00028859,2]
[424440840,1780895447000,-175.92285731,0.00028835,2]
[424440838,1780895447000,-177.28837418,0.00028829,2]
[424440842,1780895447000,-210.19384697,0.00028835,2]
[424440841,1780895447000,-196.42664617,0.00028835,2]
[424440843,1780895447000,-355.00821031,0.00028835,2]
[424440846,1780895447000,-940.89,0.00028852,7]
[424440845,1780895447000,-938.73,0.00028852,7]
[424440847,1780895447000,-500.0,0.00028855,2]
[424440844,1780895447000,-241.04411421,0.00028835,2]
[424440848,1780895447000,-150.0,0.00028855,2]
[424440851,1780895447000,-938.73,0.00028883,30]
[424440853,1780895447000,-456.17,0.000289,7]
[424440854,1780895447000,-1571.88,0.000289,7]
[424440860,1780895447000,-940.89,0.00028947,7]
[424440858,1780895447000,-940.89,0.00028915,2]
[424440859,1780895447000,-938.73,0.00028947,7]
[424440856,1780895447000,-160.0,0.00028914,3]
[424440855,1780895447000,-326.56420514,0.000289,2]
[424440857,1780895447000,-938.73,0.00028915,2]
[424440852,1780895447000,-940.89,0.00028883,30]
[424440796,1780895447000,-940.89,0.00028725,2]
[424440827,1780895447000,-335.19586625,0.00028782,2]
[424440828,1780895447000,-940.89,0.00028788,30]
[424440759,1780895447000,-456.17,0.000283,7]
[424440832,1780895447000,-938.73,0.0002882,2]
[424440802,1780895447000,-375.08131822,0.00028764,2]
[424440826,1780895447000,-380.62657424,0.00028782,2]
[424440803,1780895447000,-530.2,0.00028767,2]
[424440801,1780895447000,-175.0,0.00028763,2]
[424440804,1780895447000,-500.0,0.00028767,30]
[424440800,1780895447000,-2323.0,0.0002876,3]
[424440810,1780895447000,-198.46,0.00028767,13]
[424440808,1780895447000,-247.3675,0.00028767,14]
[424440806,1780895447000,-500.0,0.00028767,2]
[424440811,1780895447000,-300.0,0.00028767,2]
[424440805,1780895447000,-532.22966768,0.00028767,30]
[424440809,1780895447000,-198.47,0.00028767,13]
[424440812,1780895447000,-221.79950486,0.0002877,2]
[424440814,1780895447000,-187.35002913,0.00028772,2]
[424440807,1780895447000,-217.51437528,0.00028767,2]
[424440815,1780895447000,-319.25783023,0.00028772,2]
[424440836,1780895447000,-197.09120603,0.00028829,2]
[424440823,1780895447000,-360.60215117,0.00028772,2]
[424440834,1780895447000,-203.32889061,0.0002882,30]
[424440830,1780895447000,-6707.84073175,0.000288,5]
[424440825,1780895447000,-365.9289593,0.00028779,2]
[424440818,1780895447000,-309.91285835,0.00028772,2]
[424440820,1780895447000,-399.08010842,0.00028772,2]
[424440819,1780895447000,-337.06552188,0.00028772,2]
[424440816,1780895447000,-370.47407294,0.00028772,2]
[424440822,1780895447000,-358.73283486,0.00028772,2]
[424440821,1780895447000,-344.07897314,0.00028772,2]
[424440817,1780895447000,-319.19821729,0.00028772,2]
[424440824,1780895447000,-185.5787659,0.00028773,2]
[424440813,1780895447000,-373.14053701,0.00028772,2]
[424440870,1780895448000,-940.89,0.00028979,30]
[424440875,1780895448000,-200.0,0.00029,2]
[424440872,1780895448000,-551.41,0.00028995,2]
[424440871,1780895448000,-769.78545508,0.00028993,2]
[424440867,1780895448000,-169.5999204,0.00028971,2]
[424440869,1780895448000,-938.73,0.00028979,30]
[424440865,1780895448000,-40480.14800606,0.0002897,6]
[424440862,1780895448000,-216.0,0.00028956,3]
[424440876,1780895448000,-200.0,0.00029,2]
[424440866,1780895448000,-179.97120458,0.00028971,2]
[424440864,1780895448000,-2709.73,0.00028964,2]
[424440863,1780895448000,-151.0,0.00028962,4]
[424440861,1780895448000,-2323.0,0.00028956,3]
[424440868,1780895448000,-194.000028,0.00028971,2]
[424440877,1780895448000,-200.0,0.00029,2]
[424440874,1780895448000,-151.0,0.00028997,7]
[424440892,1780895448000,-11183.58913113,0.00029,2]
[424440878,1780895448000,-200.0,0.00029,2]
[424440891,1780895448000,-2768.89391467,0.00029,2]
[424440893,1780895448000,-219.76923867,0.00029,2]
[424440894,1780895448000,-325581.11516311,0.00029,2]
[424440888,1780895448000,-200.0,0.00029,2]
[424440889,1780895448000,-200.0,0.00029,2]
[424440890,1780895448000,-213.84,0.00029,2]
[424440873,1780895448000,-151.0,0.00028997,7]
[424440886,1780895448000,-200.0,0.00029,2]
[424440887,1780895448000,-200.0,0.00029,2]
[424440879,1780895448000,-200.0,0.00029,2]
[424440882,1780895448000,-200.0,0.00029,2]
[424440885,1780895448000,-200.0,0.00029,2]
[424440884,1780895448000,-200.0,0.00029,2]
[424440880,1780895448000,-200.0,0.00029,2]
[424440881,1780895448000,-200.0,0.00029,2]
[424440883,1780895448000,-200.0,0.00029,2]
[424440895,1780895449000,-1072.01525257,0.00029,2]
[424440899,1780895449000,-561.32,0.00024999,2]
[424440896,1780895449000,-215.86427702,0.00012723,2]
[424440900,1780895449000,-561.32,0.00027396,2]
[424440897,1780895449000,-313.23579298,0.00020046,7]
[424440902,1780895449000,-898.80774939,0.00029,2]
[424440898,1780895449000,-561.32,0.0002491,2]
[424440901,1780895449000,-561.32,0.00028969,7]
[424440931,1780895450000,500.0,0.00030136,120]
[424440904,1780895450000,-539.34622638,0.0002863,2]
[424440905,1780895450000,-202.85685353,0.00028661,7]
[424440911,1780895450000,-5763.48945939,0.00029,2]
[424440906,1780895450000,-736.75314647,0.00028661,7]
[424440907,1780895450000,-939.61,0.00028693,30]
[424440909,1780895450000,-561.32,0.00028999,7]
[424440912,1780895450000,-714.19220202,0.00029,2]
[424440910,1780895450000,-561.32,0.00028999,7]
[424440908,1780895450000,-939.61,0.00028725,2]
[424440913,1780895450000,-481.93399588,0.00029,2]
[424440914,1780895450000,-2619.9172886,0.00024811,2]
[424440917,1780895450000,-939.61,0.00028788,30]
[424440915,1780895450000,-185.21850713,0.00026296,2]
[424440921,1780895450000,-939.61,0.00028883,30]
[424440916,1780895450000,-939.61,0.00028756,7]
[424440918,1780895450000,-939.61,0.0002882,2]
[424440919,1780895450000,-718.25743937,0.00028852,7]
[424440923,1780895450000,-250.0,0.00027574,9]
[424440922,1780895450000,-705.24691458,0.00028915,2]
[424440925,1780895450000,-939.61,0.00028947,7]
[424440926,1780895450000,-939.61,0.00028979,30]
[424440927,1780895450000,-1431.72826726,0.00029,2]
[424440928,1780895450000,-322.8916,0.00029,2]
[424440924,1780895450000,-234.36308542,0.00028915,2]
[424440929,1780895450000,-2935.74081743,0.00029,2]
[424440930,1780895450000,-659.38084439,0.00029,2]
[424440903,1780895450000,-400.26377362,0.0002863,2]
[424440920,1780895450000,-221.35256063,0.00028852,7]
[424440932,1780895468000,537.49,0.00030136,120]
[424440933,1780895471000,881.0,0.0003,120]
[424440934,1780895485000,1000.0,0.0003,120]
[424440939,1780895494000,500.0,0.00029999,120]
[424440938,1780895494000,500.0,0.00029863,120]
[424440936,1780895494000,500.0,0.00028999,120]
[424440937,1780895494000,500.0,0.00028999,120]
[424440935,1780895494000,500.0,0.00028969,120]
[424440941,1780895495000,500.0,0.00029999,120]
[424440940,1780895495000,500.0,0.00029999,120]
[424440944,1780895496000,500.0,0.00030068,120]
[424440943,1780895496000,500.0,0.00030068,120]
[424440942,1780895496000,500.0,0.00030068,120]
[424440947,1780895497000,500.0,0.00030068,120]
[424440946,1780895497000,500.0,0.00030068,120]
[424440945,1780895497000,500.0,0.00030068,120]
[424440948,1780895498000,500.0,0.00030068,120]
[424440949,1780895498000,500.0,0.00030068,120]
[424440950,1780895498000,500.0,0.00030068,120]
[424440954,1780895499000,570.47170127,0.00030068,120]
[424440953,1780895499000,500.0,0.00030068,120]
[424440952,1780895499000,500.0,0.00030068,120]
[424440951,1780895499000,500.0,0.00030068,120]
[424440956,1780895781000,539.78,0.00029863,120]
[424440957,1780895782000,207.08108009,0.00030068,120]
[424440960,1780896011000,500.0,0.00029875,120]
[424440959,1780896011000,500.0,0.00028999,120]
[424440963,1780896012000,505.42825574,0.00029999,120]
[424440961,1780896012000,500.0,0.00029999,120]
[424440973,1780896569000,-1175.97776117,0.00011699,2]
[424440987,1780896631000,-482.6807,0.00011758,2]
[424440986,1780896631000,-150.0,0.00011714,2]
[424440988,1780896631000,-690.53,0.00011807,2]
[424440984,1780896631000,-1123.29183357,0.00011699,2]
[424440985,1780896631000,-761.38707226,0.00011699,2]
[424441034,1780896632000,-953.19734941,0.00013,5]
[424441035,1780896632000,-169.38,0.00013146,2]
[424441039,1780896632000,-224.57091147,0.00013488,2]
[424441037,1780896632000,-255.0,0.00013394,2]
[424441036,1780896632000,-690.53,0.00013283,2]
[424441030,1780896632000,-500.0,0.00012751,6]
[424441041,1780896632000,-153.84603978,0.00013488,2]
[424441051,1780896632000,-500.0,0.00013698,2]
[424441040,1780896632000,-238.47314681,0.00013488,2]
[424441049,1780896632000,-500.0,0.00013698,2]
[424441047,1780896632000,-500.0,0.00013698,2]
[424441031,1780896632000,-500.0,0.00012751,7]
[424441046,1780896632000,-154.58509942,0.00013488,2]
[424441043,1780896632000,-150.53336307,0.00013488,2]
[424441042,1780896632000,-150.0,0.00013488,2]
[424441050,1780896632000,-500.0,0.00013698,2]
[424441048,1780896632000,-507.15165324,0.00013698,2]
[424441045,1780896632000,-150.0,0.00013488,2]
[424441053,1780896632000,-500.0,0.00013698,2]
[424441052,1780896632000,-500.0,0.00013698,2]
[424441055,1780896632000,-500.0,0.00013698,2]
[424441056,1780896632000,-500.0,0.00013698,2]
[424441062,1780896632000,-500.0,0.00013698,2]
[424441054,1780896632000,-500.0,0.00013698,2]
[424441063,1780896632000,-500.0,0.00013698,2]
[424441044,1780896632000,-150.0,0.00013488,2]
[424441029,1780896632000,-500.0,0.00012751,5]
[424441033,1780896632000,-169.38,0.00012833,2]
[424441032,1780896632000,-500.0,0.00012751,8]
[424440989,1780896632000,-3530.47,0.00011948,2]
[424440991,1780896632000,-62474.32649311,0.000123,2]
[424440992,1780896632000,-186.45,0.00012329,2]
[424440990,1780896632000,-150.0,0.00012299,2]
[424441001,1780896632000,-150.99,0.00012492,2]
[424440996,1780896632000,-167.19384099,0.00012492,2]
[424440993,1780896632000,-33252.4679,0.00012455,2]